[Event "Coimbra Queima Fitas Open 2024"]
[Site "Coimbra"]
[Date "2024.04.26"]
[Round "3.15"]
[White "Lachever, Diogo Freire"]
[Black "Almeida, Joao Pedro Dias"]
[Result "0-1"]
[ECO "A40"]
[WhiteElo "1772"]
[BlackElo "2006"]
[Annotator "TA"]
[PlyCount "92"]
[EventDate "2024.04.23"]
[EventType "swiss"]
[EventCountry "POR"]
[SourceTitle "playchess.com"]
[Source "ChessBase"]
[SourceQuality "1"]
[TimeControl "5400+30"]

{[%evp 10,92,30,27,44,25,25,9,46,21,44,37,44,46,41,29,38,35,32,32,32,36,35,34,31,41,43,8,7,0,0,-36,45,46,62,56,58,0,-8,-18,0,0,8,16,11,0,0,-31,0,-98,-102,-97,-99,-118,-126,-127,-122,-124,0,0,0,0,8,8,8,0,0,0,0,0,0,-8,-8,-504,-493,-457,-8,-1600,-1600,-1390,-1308,-29966,-29969,-29974,-29974]} 1. d4 {[%emt 0:00:06]} Nf6 {[%emt 0:00:06]} 2. c4 {[%emt 0:00:07]} e6 {[%emt 0:00:05]} 3. g3 {[%emt 0:00:05]} Bb4+ {[%emt 0:01:07]} 4. Nd2 {[%emt 0:00:11]} O-O {[%emt 0:00:48]} 5. Ngf3 {[%emt 0:00:28]} d6 {[%emt 0:02:15]} 6. Bg2 {[%emt 0:00:34]} Re8 {[%emt 0:01:23]} 7. a3 {[%emt 0:00:29]} Bxd2+ {[%emt 0:00:04]} 8. Bxd2 {[%emt 0:00:48]} Ne4 {[%emt 0:01:11] The position is equal.} 9. O-O {[%emt 0:02:31]} e5 {[%emt 0:01:15]} 10. dxe5 {[%emt 0:03:24]} dxe5 {[%emt 0:00:33]} 11. Be3 {[%emt 0:03:10] aiming for Qxd8. This pair of bishops is nice.} Qe7 {[%emt 0:01:38]} 12. Qc2 {[%emt 0:08:24]} Nd6 13. Bc5 {[%emt 0:08:15]} Nd7 {[%emt 0:04:50]} 14. Bxd6 {[%emt 0:01:04]} Qxd6 {[%emt 0:00:17]} 15. Ng5 {[%emt 0:07:08][%cal Og2d5]} Nf8 {[%emt 0:01:36]} 16. Bd5 {[%emt 0:13:42]} Re7 {[%emt 0:02:34]} 17. Be4 {[%emt 0:08:41][%cal Oa1d1]} Qh6 {[%emt 0:00:30]} 18. Nf3 {[%emt 0:02:21]} c6 {[%emt 0:01:34]} 19. Rfd1 {[%emt 0:03:37]} Bg4 {[%emt 0:03:31]} 20. c5 {[%emt 0:05:52]} Bxf3 {[%emt 0:01:55]} (20... Qh5 $15) 21. Bxf3 $14 {[%emt 0:00:33]} Ne6 {[%emt 0:00:07]} 22. Rd6 {[%emt 0:00:43]} Nd4 {[%emt 0:02:42]} 23. Qc1 {[%emt 0:01:07]} (23. Qd3 $14 g6 24. Bg2) 23... Qxc1+ $11 {[%emt 0:07:17]} (23... Qh3 {is interesting.} 24. Qg5 f6 25. Qe3 Nf5) 24. Rxc1 {[%emt 0:00:06]} a5 {[%emt 0:01:22]} 25. Kg2 {[%emt 0:07:30]} g6 {[%emt 0:00:27]} 26. e3 {[%emt 0:00:45]} Ne6 {[%emt 0:03:09]} 27. h4 {[%emt 0:01:21]} h5 {[%emt 0:00:54]} 28. a4 {[%emt 0:03:37]} Rd8 {[%emt 0:01:22]} 29. Rcd1 {[%emt 0:01:55]} (29. g4 $11) 29... Rxd6 $17 {[%emt 0:00:50]} 30. cxd6 {[%emt 0:00:07][%mdl 4096] Endgame. KRB-KRN} Rd7 {[%emt 0:00:03]} 31. g4 {[%emt 0:00:49]} hxg4 {[%emt 0:00:21]} 32. Bxg4 {[%emt 0:00:11]} f5 {[%emt 0:00:03]} 33. Bh3 {[%emt 0:00:06]} e4 {[%emt 0:00:30]} ({Black should play} 33... Kg7 $17 {Hoping for ...Kf6.} 34. h5 Kf6 (34... gxh5 35. Bxf5 Kf6 36. Bc2 $11) 35. hxg6 Kxg6) 34. f3 $11 {[%emt 0:00:30]} Nc5 {[%emt 0:00:30]} 35. h5 $1 {[%emt 0:05:32]} Nd3 {[%emt 0:03:23]} 36. fxe4 $1 {[%emt 0:00:38]} (36. hxg6 Rxd6 37. Kf1 (37. Bxf5 Nf4+ 38. exf4 exf3+ 39. Kxf3 Rxd1 $17) 37... Rf6 $11) 36... Rxd6 {[%emt 0:00:08][%cal Od3f4] [#] Threatens to win with ...Nf4+!} 37. exf5 {[%emt 0:04:29]} Nf4+ $1 {[%emt 0:00:30]} 38. exf4 {[%emt 0:00:02]} Rxd1 {[%emt 0:00:03]} 39. fxg6 {[%emt 0:00:15] KR-KB} Kg7 {[%emt 0:00:05] And now ...Rd2+ would win.} 40. Be6 {[%emt 0:03:37]} Rd2+ {[%emt 0:00:51]} 41. Kf3 $2 {[%emt 0:00:29][%mdl 8192]} (41. Kg3 $1 $11) 41... Rxb2 $19 {[%emt 0:00:09] [#] White must now prevent ...b5.} 42. f5 {[%emt 0:01:44]} Rb4 {[%emt 0:00:36]} (42... b5 $19 43. Bf7 Rh2 (43... bxa4 44. h6+ Kxh6 45. f6 $11) 44. h6+ Rxh6 (44... Kxh6 45. f6 $14) 45. axb5 cxb5) 43. Bf7 $2 {[%emt 0:01:12][%mdl 8192]} (43. Kg3 $11) 43... Rh4 $1 {[%emt 0:00:51]} ({Weaker is} 43... Rxa4 44. h6+ Kxh6 45. f6 $11) 44. Be8 {[%emt 0:01:33]} Rxh5 {[%emt 0:00:20]} ({Stronger than} 44... Rxa4 45. h6+ Kxh6 46. f6 $11) 45. f6+ {[%emt 0:00:09]} Kxf6 {[%emt 0:00:05]} 46. g7 {[%emt 0:00:12]} Rg5 {[%emt 0:00:05] Weighted Error Value: White=0.57/Black=0.32.  Loses game:     	White=2     	---        Missed win:     	---       	Black=1      Mistake:       	White=2     	Black=2      Inaccurate:     	White=3     	Black=2      OK:         	White=10    	Black=17     Best:        	White=2     	Black=2      Strong:       	White=2     	Black=2} 0-1

[Event "Coimbra Queima Fitas Open 2024"]
[Site "Coimbra"]
[Date "2024.04.26"]
[Round "3.16"]
[White "Gasimov, Eldar Emil Oglu"]
[Black "Costa, Rui Filipe Magalhaes"]
[Result "1-0"]
[ECO "D96"]
[WhiteElo "1752"]
[BlackElo "1994"]
[Annotator "TA"]
[PlyCount "69"]
[EventDate "2024.04.23"]
[EventType "swiss"]
[EventCountry "POR"]
[SourceTitle "playchess.com"]
[Source "ChessBase"]
[SourceQuality "1"]
[TimeControl "5400+30"]

{[%evp 19,69,33,39,22,101,100,101,53,149,143,162,193,197,209,244,183,256,269,260,260,402,402,534,534,614,548,545,613,613,609,592,592,608,610,780,774,873,811,814,791,926,947,994,968,987,981,1387,1200,5788,5654,29971,29972]} 1. d4 d5 2. Nf3 g6 3. c4 c6 4. Nc3 Nf6 5. g3 Bg7 6. Bg2 O-O 7. O-O Nbd7 8. cxd5 Nxd5 9. e4 Nxc3 10. bxc3 Qa5 11. Qb3 Nf6 (11... Nb6 $11) 12. e5 $16 Be6 13. Qxb7 ({White should play} 13. c4 $16 Nd7 14. Ng5 (14. Qxb7 Rab8 $14)) 13... Rab8 (13... Nd5 $14 14. Rb1 (14. Qxc6 $2 {is the wrong capture.} Rac8 $19) 14... Qxc3) 14. Qxe7 (14. Qxc6 $2 {loses.} Rfc8 $19) 14... Rfe8 15. Qa3 Qxa3 16. Bxa3 {[%cal Bc1a3,Ba3b4,Bb4a5][%mdl 32]} Ne4 17. Bb4 Bh6 (17... Bf8 {was called for.} 18. Rfe1 c5) 18. Rfe1 $18 Bd5 19. a3 {[%cal Oc3c4] Hoping for c4!} a5 (19... Nd2 $142) 20. Bxa5 Rb2 {[#]} 21. c4 $1 Nxf2 (21... Ra8 22. cxd5) 22. cxd5 cxd5 23. Reb1 Reb8 24. Bb4 Rxb1+ 25. Rxb1 Ne4 26. Bh3 Nc3 27. Re1 Ne4 28. e6 {[%cal Be5e6,Be6e7][%mdl 32]} f5 29. Bf1 Bg7 30. Ba6 g5 31. e7 Kf7 32. Rc1 {[#] Ne5+ would now be deadly.} Bf6 33. Rc7 Rb6 34. Bb7 Nd6 35. Bxd5+ {Weighted Error Value: White=0.08 (flawless) /Black=0.51.  Mistake:       	White=1     	Black=4      Inaccurate:     	---       	Black=1      OK:         	White=7     	Black=4      Best:        	White=2     	---        Brilliant:      	White=1     	---} 1-0

[Event "Coimbra Queima Fitas Open 2024"]
[Site "Coimbra"]
[Date "2024.04.26"]
[Round "3.17"]
[White "Goncalves, Lucas Jordao"]
[Black "Ryabukhina, Veronika"]
[Result "1-0"]
[ECO "C05"]
[WhiteElo "1983"]
[BlackElo "1738"]
[Annotator "TA"]
[PlyCount "93"]
[EventDate "2024.04.23"]
[EventType "swiss"]
[EventCountry "POR"]
[SourceTitle "playchess.com"]
[Source "ChessBase"]
[SourceQuality "1"]
[TimeControl "5400+30"]

{[%evp 15,93,45,45,36,72,41,97,96,87,89,86,52,131,93,137,93,171,126,173,83,85,77,90,41,68,72,76,61,70,35,36,41,69,31,63,53,39,-45,-25,-73,-108,-78,214,209,775,284,485,479,514,229,593,616,764,786,781,737,745,701,1856,797,781,214,225,98,1739,314,308,298,309,307,307,299,304,0,0,0,0,-569,-526,-472]} 1. e4 {[%emt 0:10:40]} e6 {[%emt 0:00:20]} 2. d4 {[%emt 0:00:37]} d5 {[%emt 0:00:08]} 3. Nd2 {[%emt 0:00:24]} Nf6 {[%emt 0:00:12]} 4. e5 {[%emt 0:00:38]} Nfd7 {[%emt 0:00:07]} 5. Bd3 {[%emt 0:05:32]} c5 {[%emt 0:01:00]} 6. c3 {[%emt 0:00:18]} Nc6 {[%emt 0:00:59]} 7. Ne2 {[%emt 0:01:12]} Be7 {[%emt 0:04:25]} 8. O-O {[%emt 0:01:45]} O-O {[%emt 0:07:18]} 9. Nf3 {[%emt 0:01:30]} a6 {[%emt 0:03:57]} 10. Be3 {[%emt 0:21:06]} c4 {[%emt 0:19:28]} (10... cxd4 $14 11. cxd4 f6) 11. Bc2 $16 {[%emt 0:00:19] White is better.} Re8 {[%emt 0:01:16]} 12. Ng3 {[%emt 0:01:03]} b5 {[%emt 0:01:39]} 13. h3 {[%emt 0:06:18]} f6 {[%emt 0:07:28]} (13... b4 $14) 14. exf6 {[%emt 0:00:22]} Bxf6 {[%emt 0:00:32]} 15. Re1 {[%emt 0:00:23]} Nf8 {[%emt 0:05:11]} (15... g6 $16) 16. Bf4 {[%emt 0:01:32]} Bb7 {[%emt 0:02:42]} (16... Ng6 $16) 17. Ne5 {[%emt 0:01:49]} (17. Nh5 $18) 17... Nxe5 {[%emt 0:01:28]} 18. Bxe5 {[%emt 0:01:05]} Bxe5 {[%emt 0:01:04]} 19. dxe5 {[%emt 0:00:42]} (19. Rxe5 $16 Re7 20. f4) 19... Qb6 {[%emt 0:01:39]} 20. Qg4 {[%emt 0:01:01] Hoping for Nh5.} Re7 {[%emt 0:02:39]} 21. Rad1 {[%emt 0:04:06]} b4 {[%emt 0:02:00]} 22. Nh5 {[%emt 0:01:19]} Kh8 {[%emt 0:02:39]} 23. Nf4 {[%emt 0:01:04][%cal Oc2h7]} Rae8 {[%emt 0:04:42]} 24. Re3 {[%emt 0:01:44] White has more active pieces.} Rf7 {[%emt 0:01:19]} 25. Qh5 {[%emt 0:02:33]} Kg8 {[%emt 0:01:45]} 26. Rf3 {[%emt 0:20:19]} (26. Ne2 $14) 26... Ree7 $15 {[%emt 0:10:44] Threatens to win with ...bxc3.} 27. Rd4 {[%emt 0:03:54]} (27. Kh2 $11) 27... bxc3 $1 $17 {[%emt 0:02:24]} 28. bxc3 {[%emt 0:00:15][%cal Oc2h7] And now Bxh7+! would win.} Rd7 $2 {[%emt 0:09:50][%mdl 8192] [#]} (28... Qb2 $17 {keeps the pressure on.} 29. Bd1 Bc6) 29. Kh2 $1 $18 {[%emt 0:03:33]} g6 $2 {[%emt 0:03:56]} (29... Qd8 30. Rg3 Qe8) 30. Qh6 $2 {[%emt 0:05:27]} (30. Bxg6 Rg7 31. Nxd5) 30... Qd8 $2 {[%emt 0:00:57]} (30... Qc7 {is a better defense.}) 31. h4 {[%emt 0:01:57] aiming for h5.} Rg7 {[%emt 0:01:15]} 32. Nh3 {[%emt 0:01:02]} (32. h5 $142 {[%cal Rf4g6] Black must now prevent Nxg6!} Rdf7 33. Rg3 (33. hxg6 hxg6 34. Bxg6 Nxg6 $18) 33... Qh4+ 34. Rh3 Qxf2 35. hxg6 Qxc2 36. gxf7+ Kxf7 37. Qf6+ Kg8 38. Rh5 (38. Nxe6 $2 Qxg2#)) 32... Qc7 $2 {[%emt 0:00:34]} (32... Rdf7 33. Rxf7 Rxf7) 33. Ng5 {[%emt 0:01:00][%cal Of3f8] Threatening mate with Rxf8+!} Qxe5+ {[%emt 0:00:37]} 34. g3 {[%emt 0:00:09]} Rd8 {[%emt 0:00:32]} 35. Rdf4 {[%emt 0:00:43]} d4 {[%emt 0:00:38] [#]} 36. cxd4 $1 {[%emt 0:00:26] Rxf8+ would kill now.} Qd6 {[%emt 0:00:29]} 37. Be4 {[%emt 0:00:18]} (37. Rf7 $142 Qxd4 38. Rxf8+ Rxf8 39. Rxf8+ (39. Nxe6 Rxf3 40. Nxd4 Rxf2+ 41. Kh3 Re7 $18) 39... Kxf8 40. Nxe6+ (40. Nxh7+ $2 Kg8 $19) 40... Kg8 41. Nxd4) 37... Bxe4 {[%emt 0:00:24]} 38. Nxe4 $2 {[%emt 0:00:18]} (38. Rxe4 Rc8 $16) (38. Rf7 {[%csl Gf7][%cal Rh6g7]} Qxd4 39. Rxf8+ Rxf8 40. Rxf8+ (40. Nxe6 $2 Qxf2+ 41. Rxf2 Rxf2+ 42. Kg1 Rgf7 $19) 40... Kxf8 41. Nxe6+ (41. Nxh7+ $2 Kg8 $19) 41... Ke8 42. Nxd4) 38... Qe7 {[%emt 0:00:31]} 39. Ng5 {[%emt 0:00:28]} (39. h5 $18 {is more deadly.}) 39... Qd7 {[%emt 0:00:38][%mdl 8192]} (39... Rc8 $16) 40. Rf7 $2 {[%emt 0:00:21]} (40. Rxf8+ Rxf8 41. Rxf8+ Kxf8 42. Nxh7+ Ke7 43. Qg5+ (43. Qxg7+ Kd6 $18) 43... Ke8 44. Nf6+ Ke7 45. Nxd7+ Kxd7 46. Qf6) 40... Rxf7 {[%emt 0:00:26]} 41. Rxf7 {[%emt 0:00:04]} Qxf7 {[%emt 0:00:36]} 42. Nxf7 {[%emt 0:00:09]} Kxf7 {[%emt 0:00:05] KQ-KRN} 43. Qf4+ {[%emt 0:00:06]} Ke8 {[%emt 0:00:34]} 44. Qe5 $2 {[%emt 0:01:33]} (44. Qf3 $18 {Qc6+ would now be deadly.} Rd5 45. Qc3) 44... Rc8 $11 {[%emt 0:00:46] ...c3 is the strong threat.} 45. d5 {[%emt 0:01:24]} c3 {[%emt 0:00:29] Strongly threatening ...c2.} 46. dxe6 $2 {[%emt 0:00:28][%mdl 8192]} (46. Qg7 $11 {and White is okay.} exd5 (46... c2 47. d6) 47. Qe5+ Kd8 48. Qg5+ (48. Qxd5+ Ke8 $11) 48... Kc7 49. Qf4+ (49. Qxd5 c2 $11) 49... Kd7 50. Qf7+ Kd6 51. Qf4+ Kc6 52. Qa4+ Kb7 53. Qb4+ Ka8 54. Qd6) 46... c2 $19 {[%emt 0:00:34]} 47. e7 {[%emt 0:00:25][%mdl 32768] Weighted Error Value: White=0.99/Black=0.44.  Loses game:     	White=1     	Black=2      Missed win:     	White=1     	---        Mistake:       	White=7     	Black=7      Inaccurate:     	White=5     	Black=5      OK:         	White=5     	Black=8      Best:        	White=2     	Black=4      Strong:       	White=1     	Black=1     . Loss on time!?} 1-0

[Event "Coimbra Queima Fitas Open 2024"]
[Site "Coimbra"]
[Date "2024.04.26"]
[Round "3.18"]
[White "Serarols Mabras, Bernat"]
[Black "Tribuzi, Carlos Alberto Dias"]
[Result "1-0"]
[ECO "A13"]
[WhiteElo "2361"]
[BlackElo "1714"]
[Annotator "TA"]
[PlyCount "99"]
[EventDate "2024.04.23"]
[EventType "swiss"]
[EventCountry "POR"]
[SourceTitle "playchess.com"]
[Source "ChessBase"]
[SourceQuality "1"]
[TimeControl "5400+30"]

{[%evp 16,99,42,30,41,0,16,3,44,0,0,2,9,13,24,34,37,35,52,47,49,28,46,0,0,0,0,0,0,0,16,14,29,10,36,25,31,10,9,10,14,10,10,10,10,9,9,10,14,8,16,10,29,18,21,23,25,0,0,0,0,0,8,6,6,0,0,0,0,0,7,7,84,67,128,128,121,76,198,175,272,268,29976,29977,29975,29976]} 1. Nf3 {[%emt 0:08:19]} e6 {[%emt 0:00:49]} 2. c4 {[%emt 0:00:53]} d5 {[%emt 0:00:43]} 3. e3 {[%emt 0:00:19]} Nf6 4. d4 {[%emt 0:00:11]} c5 {[%emt 0:03:55]} 5. cxd5 {[%emt 0:00:22]} exd5 {[%emt 0:02:42]} 6. Be2 {[%emt 0:02:00]} Nc6 {[%emt 0:04:00]} 7. O-O {[%emt 0:00:07]} Be7 {[%emt 0:01:46]} 8. b3 {[%emt 0:01:17]} O-O {[%emt 0:00:35]} 9. Bb2 {[%emt 0:00:13]} Bg4 {[%emt 0:01:53]} 10. Nbd2 {[%emt 0:02:17]} Rc8 {[%emt 0:03:03]} 11. h3 {[%emt 0:04:23]} Bh5 {[%emt 0:01:04] The position is equal.} 12. Ne5 {[%emt 0:05:51]} Bxe2 {[%emt 0:02:02]} 13. Qxe2 {[%emt 0:00:27]} cxd4 {[%emt 0:01:39]} 14. Nxc6 {[%emt 0:00:11]} Rxc6 {[%emt 0:09:43]} 15. Bxd4 {[%emt 0:00:14]} Bc5 {[%emt 0:07:00]} 16. Nf3 {[%emt 0:01:27]} Bxd4 {[%emt 0:10:21]} 17. Nxd4 {[%emt 0:00:11]} Rc5 {[%emt 0:04:34]} 18. Qb2 {[%emt 0:07:27]} Qc7 {[%emt 0:08:17]} 19. f3 {[%emt 0:07:20]} (19. Rac1 $14 {should be considered.}) 19... Rc8 $11 {[%emt 0:02:52]} 20. Rfe1 {[%emt 0:00:40]} a6 {[%emt 0:02:01]} 21. Rad1 {[%emt 0:00:27]} Rc3 {[%emt 0:03:40]} 22. Qe2 {[%emt 0:12:04]} h6 {[%emt 0:02:50]} 23. Rd3 {[%emt 0:00:47]} Rc1 {[%emt 0:03:03]} 24. Red1 {[%emt 0:00:42]} Rxd1+ {[%emt 0:02:18]} 25. Rxd1 {[%emt 0:00:45]} Qc3 {[%emt 0:02:19]} 26. Qe1 {[%emt 0:06:53]} Qxe1+ {[%emt 0:02:05]} 27. Rxe1 {[%emt 0:00:45][%mdl 4096] Endgame. KRN-KRN} g6 {[%emt 0:00:32]} 28. Rd1 {[%emt 0:03:43]} Kf8 {[%emt 0:01:08]} 29. Kf2 {[%emt 0:00:18]} h5 {[%emt 0:01:14]} 30. g4 {[%emt 0:00:20]} hxg4 {[%emt 0:00:04]} 31. hxg4 {[%emt 0:00:11]} Ke7 {[%emt 0:01:31]} 32. Rd2 {[%emt 0:02:42]} Rc7 {[%emt 0:04:00]} 33. Ne2 {[%emt 0:00:30]} Rd7 {[%emt 0:01:52]} 34. Kg3 {[%emt 0:00:31]} Ne8 {[%emt 0:01:23]} 35. Nc3 {[%emt 0:04:04]} Nc7 {[%emt 0:00:53]} 36. Na4 {[%emt 0:00:08]} Rd6 {[%emt 0:01:27]} 37. Nc5 {[%emt 0:01:55]} b6 {[%emt 0:01:45]} 38. Nd3 {[%emt 0:01:20]} d4 {[%emt 0:02:22]} 39. e4 {[%emt 0:00:38]} g5 {[%emt 0:01:18]} 40. e5 {[%emt 0:08:04]} Rd7 {[%emt 0:01:53]} 41. Nb4 {[%emt 0:01:52]} Ke6 {[%emt 0:01:51]} 42. Nc6 {[%emt 0:00:59]} Rd5 {[%emt 0:02:02]} 43. f4 {[%emt 0:05:42]} gxf4+ {[%emt 0:00:09]} (43... Nb5 $11 {keeps the balance.}) 44. Kxf4 $16 {[%emt 0:00:01]} f6 {[%emt 0:01:03]} (44... d3 $14) 45. exf6 {[%emt 0:02:08] White is more active.} (45. Rxd4 $2 {too greedy.} fxe5+ 46. Ke4 exd4 $19) 45... Kxf6 {[%emt 0:00:10]} 46. Nxd4 {[%emt 0:01:29][%cal Od2f2]} (46. Rxd4 Ne6+ 47. Ke4 Rg5 $14) 46... Nb5 {[%emt 0:01:00] This move loses the game for Black.} (46... Ne6+ $16 47. Ke3 Re5+ 48. Kf2 Rd5) 47. Nf3 $18 {[%emt 0:02:39]} Rxd2 {[%emt 0:00:22]} (47... Nc3 $142) 48. Nxd2 {[%emt 0:00:01]} Nc3 $2 {[%emt 0:00:13] [#]} (48... Ke6 $18 49. Kg5 Nd4) 49. Ne4+ {[%emt 0:00:27]} Nxe4 {[%emt 0:00:09]} 50. Kxe4 {[%emt 0:00:01] Weighted Error Value: White=0.10 (very precise) /Black=0.35.  Mistake:       	White=1     	Black=5      Inaccurate:     	White=3     	Black=2      OK:         	White=9     	Black=16     Best:        	White=4     	---} 1-0

[Event "Coimbra Queima Fitas Open 2024"]
[Site "Coimbra"]
[Date "2024.04.27"]
[Round "4.1"]
[White "Novais, Carlos Joao Fernande"]
[Black "Sousa, Andre Ventura"]
[Result "1/2-1/2"]
[ECO "C47"]
[WhiteElo "2101"]
[BlackElo "2426"]
[Annotator "TA"]
[PlyCount "93"]
[EventDate "2024.04.23"]
[EventType "swiss"]
[EventCountry "POR"]
[SourceTitle "playchess.com"]
[Source "ChessBase"]
[SourceQuality "1"]
[TimeControl "5400+30"]

{[%evp 9,93,20,22,22,24,0,20,0,20,21,12,0,0,0,0,-22,-15,-64,-56,-67,0,0,12,-106,-147,-188,-193,-227,-217,-703,-693,-664,-36,-25,-36,-29,-38,-100,-101,-101,-109,-106,-104,-97,0,-45,-44,-64,-67,-81,-70,-87,-81,-97,-92,-86,-28,-77,-16,-12,-12,-53,-64,-179,-172,-185,-179,-184,-92,-76,-24,-26,-61,-989,0,0,0,0,0,0,0,0,0,0,0,0]} 1. e4 e5 2. Nf3 Nc6 3. Nc3 Nf6 4. Be2 d6 5. d4 Be7 6. dxe5 Nxe5 7. Bf4 Ng6 8. Bg3 Nh5 9. Nd5 O-O 10. Nd4 Nxg3 11. hxg3 c6 12. Nxe7+ Qxe7 13. Qd2 (13. f3 $11) 13... Qxe4 $15 14. O-O-O Qd5 (14... Qxg2 $2 15. Bf3 $18) (14... Qe7 $15) 15. Rh5 f5 (15... Qxa2 $2 16. Ra5 $18) (15... Qxg2 $2 16. Bf3 $18) 16. Qg5 (16. g4 $11 {keeps the balance.} Qxa2 17. c4) 16... Qxa2 $17 17. Nb3 {[#] Repels Qa1+} Rf6 18. Rdh1 Nf8 19. Rxh7 $2 (19. g4) 19... Nxh7 $19 20. Qh5 Rh6 (20... Nf8 $19 21. Qh8+ Kf7) 21. Qe8+ $15 Nf8 22. Rxh6 gxh6 23. Bh5 {[#]} (23. Bc4+ $1 $15 d5 24. Be2) 23... Be6 $1 $17 24. Qxa8 Bxb3 25. cxb3 Qxb3 26. Qxa7 {[%mdl 4096] Endgame. KQB-KQN} b5 (26... f4 $17 27. Bd1 (27. gxf4 Qc4+ 28. Kb1 Qe4+ 29. Kc1 Qxf4+ 30. Kd1 Qe4 $17) 27... Qc4+ 28. Kb1 Qf1) 27. Qd4 Qe6 28. Bf3 d5 29. g4 Ng6 30. gxf5 Qxf5 31. Bg4 Qe5 32. Qd2 Qg5 (32... Qe4 $17 33. Bd1 Qxg2 34. Qxh6 Qe4) 33. Bd7 $11 Qxd2+ (33... Qxg2 $17 {aiming for ...Ne5.} 34. Bxc6 Qf1+ 35. Kc2 Qc4+ 36. Qc3 Ne7) 34. Kxd2 $17 {KB-KN} Ne5 35. Be6+ Kf8 36. f4 ({White has to play} 36. b4 $1 $15) 36... Ke7 $19 37. Bh3 ({But not} 37. Bxd5 $2 cxd5 38. fxe5 Ke6 $19) 37... Nc4+ 38. Kc3 {[#]} c5 (38... h5 $1 $19 {[%cal Rh5h4] ...h4 is the strong threat.} 39. b3 Nd6) 39. b4 $17 Kd6 (39... d4+ $17 40. Kd3 Nb2+ (40... cxb4 41. Kxd4 b3 42. Kc3 $11) 41. Kc2 Na4) 40. g4 d4+ 41. Kd3 $2 {[%mdl 8192]} (41. Kb3 $15) 41... Ne3 $2 ({Black should play} 41... cxb4 $19 {Threatens to win with ...b3.} 42. Kxd4 b3) 42. g5 $11 {The position is equal.} hxg5 43. fxg5 Nd5 44. bxc5+ Kxc5 45. Ke4 {Inhibits Nf4.} d3 46. Kxd3 Kd6 47. Kd4 {Weighted Error Value: White=0.46/Black=0.41.  Loses game:     	White=1     	---        Missed win:     	---       	Black=1      Mistake:       	White=5     	Black=6      Inaccurate:     	White=3     	---        OK:         	White=14    	Black=17     Best:        	White=2     	Black=2      Strong:       	---       	Black=1} 1/2-1/2